fUST/lending_fUST_20240512
["ID","MTS","AMOUNT","RATE_DAILY","PERIOD"]
[326839925,1715499032604,-2778.37153564,0.00020908,2]
[326839926,1715499032613,-155.08709736,0.00020908,2]
[326839927,1715499032623,-449.21433957,0.00020908,2]
[326839928,1715499032632,-315.23619623,0.00020908,2]
[326839929,1715499032641,-305.32508296,0.00020908,2]
[326839930,1715499032650,-491.35885126,0.00020908,2]
[326839931,1715499032659,-2124.89254135,0.00020908,2]
[326839932,1715499032669,-156.26167825,0.00020908,2]
[326839933,1715499032678,-17647.43557842,0.00020908,2]
[326839975,1715499038220,-1268.13201515,0.00017208,2]
[326840007,1715499042629,-5696.03951953,0.00017208,2]
[326840098,1715499046370,-13261.64052317,0.00017208,2]
[326840099,1715499046379,-7886.43652278,0.00020906,2]
[326840100,1715499046389,-154.75239617,0.00020906,2]
[326840101,1715499046398,-1422.70031688,0.00020906,2]
[326840102,1715499046410,-415.11121662,0.00020906,2]
[326840103,1715499046422,-756.68340651,0.00020906,2]
[326840104,1715499046431,-3458.80437389,0.00020907,2]
[326840105,1715499046441,-7702.9824352,0.00020907,2]
[326840106,1715499046450,-1885.99966933,0.00020907,2]
[326840107,1715499046459,-17547.79492805,0.00020908,2]
[326840108,1715499046496,-9051.98542765,0.00020908,2]
[326840123,1715499718318,154.76784823,9.999e-05,2]
[326840158,1715500232232,-2105.38616566,0.00017861,2]
[326840159,1715500232241,-1895.4873316,0.00017862,2]
[326840160,1715500232250,-2594.49494001,0.00017862,2]
[326840161,1715500232258,-154.76784823,0.00017863,2]
[326840162,1715500232267,-1990.9141676,0.00017863,2]
[326840163,1715500232278,-309.33493067,0.00017863,2]
[326840254,1715500242548,-3458.80437389,0.0001786,2]
[326840255,1715500242558,-2873.38098051,0.00017862,2]
[326840354,1715500334093,158.29939173,9.999e-05,2]
[326840355,1715500423967,1494.73983919,9.999e-05,2]
[326840356,1715500584928,1042.26396896,9.999e-05,2]
[326840359,1715500798271,530.894152,0.0001657,2]
[326840360,1715500858302,154.76784823,9.999e-05,2]
[326840361,1715501074111,2932.4287872,0.00016422,2]
[326840362,1715501106562,1302.5127061,0.00016296,2]
[326840363,1715501152912,154.96988296,0.00016296,2]
[326840364,1715501200849,154.76784823,0.00016296,2]
[326840365,1715501218853,183.67014276,0.00016296,2]
[326840366,1715501242980,24900.0,0.00016279,2]
[326840367,1715501260189,265.447076,0.00017014,2]
[326840428,1715501432411,-342.767362,0.00017113,2]
[326840434,1715501432464,-549.7852092,0.00017113,2]
[326840436,1715501432473,-154.78330338,0.00017211,2]
[326840438,1715501432482,-7886.43652278,0.00017211,2]
[326840440,1715501432494,-20225.81205785,0.00017211,2]
[326840442,1715501432504,-3058.73651821,0.00017212,2]
[326840445,1715501432513,-2594.49494001,0.00017213,2]
[326840446,1715501432522,-319.7598723,0.00017223,2]
[326840449,1715501432532,-1040.6801552,0.00017766,2]
[326840451,1715501432541,-413.47570746,0.00017775,2]
[326840453,1715501432550,-155.36845812,0.00018845,2]
[326840455,1715501432558,-1348.39587866,0.00018845,2]
[326840457,1715501432567,-288.53731085,0.00018845,2]
[326840459,1715501432576,-155.05646194,0.00018846,2]
[326840461,1715501432585,-238.45332828,0.000189,2]
[326840463,1715501432594,-186.62571484,0.00018994,2]
[326840465,1715501432603,-2001.18200757,0.00018994,2]
[326840467,1715501432612,-2103.44348246,0.00018994,2]
[326840469,1715501432621,-370.16956464,0.00018994,2]
[326840471,1715501432630,-158.86280412,0.00018994,2]
[326840473,1715501432639,-1624.38458646,0.00018994,2]
[326840475,1715501432648,-1491.72163432,0.00018994,2]
[326840477,1715501432658,-242.60558826,0.00018995,2]
[326840478,1715501432668,-150.0,0.00019093,2]
[326840480,1715501432678,-4688.51821877,0.0001999,7]
[326840482,1715501432687,-179.91,0.0001999,3]
[326840485,1715501432697,-1566.09,0.0001999,3]
[326840487,1715501432706,-932.97,0.0001999,3]
[326840488,1715501432714,-466.49,0.0001999,3]
[326840490,1715501432723,-233.24,0.0001999,3]
[326840492,1715501432733,-699.77,0.0001999,3]
[326840494,1715501432742,-155.10807159,0.0002,2]
[326840496,1715501432752,-154.76784823,0.0002,2]
[326840499,1715501432762,-2012.23413501,0.0002,2]
[326840501,1715501432771,-2384.40048268,0.0002,2]
[326840536,1715501438410,-131.28750384,0.0002,2]
[326840537,1715501438420,-41843.91226202,0.0002,2]
[326840538,1715501438428,-151.0,0.0002,2]
[326840539,1715501438438,-151.0,0.0002,2]
[326840540,1715501438447,-9890.26435092,0.0002,2]
[326840541,1715501438458,-151.0,0.0002,2]
[326840542,1715501438467,-152.734,0.00020248,2]
[326840543,1715501438475,-150.0,0.00020539,2]
[326840544,1715501438486,-319.6063019,0.00020903,2]
[326840545,1715501438495,-348.97229622,0.00020903,2]
[326840546,1715501438503,-225.01030393,0.00020903,7]
[326840547,1715501438513,-391.84828581,0.00020903,2]
[326840548,1715501438522,-307.81810552,0.00020903,2]
[326840549,1715501438531,-243.84361595,0.00020904,2]
[326840550,1715501438540,-151.0,0.00020904,2]
[326840551,1715501438549,-151.0,0.00020904,2]
[326840552,1715501438558,-151.0,0.00020904,2]
[326840553,1715501438567,-151.0,0.00020904,2]
[326840554,1715501438576,-151.0,0.00020904,2]
[326840555,1715501438721,-151.0,0.00020904,2]
[326840556,1715501438732,-151.0,0.00020904,2]
[326840557,1715501438741,-151.0,0.00020904,2]
[326840558,1715501438751,-151.0,0.00020904,2]
[326840559,1715501438761,-151.0,0.00020904,2]
[326840560,1715501438770,-151.0,0.00020904,2]
[326840561,1715501438779,-151.0,0.00020904,2]
[326840562,1715501438788,-151.0,0.00020904,2]
[326840563,1715501438797,-151.0,0.00020904,2]
[326840564,1715501438807,-157.459156,0.00020904,2]
[326840565,1715501438818,-151.0,0.00020904,2]
[326840566,1715501438827,-151.0,0.00020904,2]
[326840567,1715501438836,-2027.13493946,0.00020905,2]
[326840568,1715501438848,-1568.63554327,0.00020905,2]
[326840598,1715501479918,1500.66103485,9.999e-05,2]
[326840602,1715502073476,154.76784823,9.999e-05,2]
[326840603,1715502225921,465.56886578,9.999e-05,2]
[326840604,1715502303655,-1000.0,0.00020895,3]
[326840612,1715502348802,-1000.0,0.00018069,2]
[326840613,1715502388004,-154.75239617,0.00025,14]
[326840615,1715502409866,154.76784823,0.00025,14]
[326840616,1715502432902,-1000.0,0.00018068,2]
[326840617,1715502433873,-1000.0,0.00018068,2]
[326840618,1715502434614,-594.49494001,0.00018068,2]
[326840619,1715502434637,-405.50505999,0.00018069,2]
[326840620,1715502435298,-1000.0,0.00018069,2]
[326840621,1715502436753,-1000.0,0.00018069,2]
[326840622,1715502470157,-154.76784823,0.00018068,2]
[326840623,1715502470182,-318.23215177,0.00018069,2]
[326840667,1715502632630,-2594.49494001,0.00018068,2]
[326840669,1715502632639,-4142.56488074,0.00018069,2]
[326840746,1715502640751,-17023.6979075,0.00018069,2]
[326840748,1715502640761,-154.76784823,0.00018069,2]
[326840750,1715502640770,-265.447076,0.00018522,2]
[326840752,1715502640780,-6912.4015567,0.00018742,2]
[326840753,1715502640790,-780.9834998,0.000188,2]
[326840754,1715502640799,-158.96888552,0.000189,2]
[326840755,1715502640809,-150.0,0.00018964,2]
[326840756,1715502640819,-255.32326838,0.00019324,2]
[326840757,1715502640829,-150.0,0.00019967,2]
[326840759,1715502640838,-154.76784823,0.0002,2]
[326840761,1715502640849,-2012.23413501,0.0002,2]
[326840762,1715502640859,-899.59,0.00020895,3]
[326840763,1715502640869,-449.8,0.00020895,3]
[326840764,1715502640879,-224.9,0.00020895,3]
[326840765,1715502640889,-674.71,0.00020895,3]
[326840766,1715502640900,-158.49326518,0.00020901,2]
[326840767,1715502640910,-5034.65748589,0.00020902,2]
[326840768,1715502640920,-633.72682488,0.00020903,2]
[326840769,1715502640934,-1706.57429144,0.00020903,2]
[326840770,1715502640948,-1152.31540469,0.00020903,2]
[326840771,1715502640958,-351.60918481,0.00020903,2]
[326840772,1715502640972,-318.35672682,0.00020903,2]
[326840773,1715502640982,-186.57237398,0.00020903,2]
[326840774,1715502640993,-13747.82631731,0.00020903,2]
[326840806,1715502646680,-7212.09475789,0.00020903,2]
[326840807,1715502646689,-189.66521353,0.00020904,2]
[326840808,1715502646698,-1177.92021968,0.00020904,2]
[326840809,1715502646708,-10999.86134857,0.00020904,2]
[326840810,1715502646717,-31231.82998592,0.00020905,2]
[326840811,1715502646726,-1578.7542886,0.00020906,2]
[326840812,1715502646735,-583.67613959,0.00020908,2]
[326840813,1715502646745,-904.53581118,0.00020911,2]
[326840814,1715502646754,-1713.52039077,0.00020912,2]
[326840815,1715502646763,-881.69910972,0.00020912,2]
[326840816,1715502646772,-633.03673998,0.00020912,2]
[326840817,1715502646781,-172.9495847,0.00020912,2]
[326840818,1715502646790,-332.48123441,0.00020912,2]
[326840819,1715502646799,-150.0,0.00020971,2]
[326840820,1715502646807,-589.0,0.000219,2]
[326840821,1715502646816,-225.0,0.00021918,2]
[326840822,1715502646825,-225.9724696,0.00021918,2]
[326840823,1715502646834,-1065.0161303,0.00021918,2]
[326840824,1715502646843,-166.666666,0.00021918,2]
[326840825,1715502646852,-150.0,0.00021974,2]
[326840826,1715502646861,-2817.25502066,0.00022,2]
[326840827,1715502646870,-159.4535182,0.00022,2]
[326840828,1715502646879,-166.666666,0.00022431,2]
[326840829,1715502646888,-166.666666,0.00022944,2]
[326840830,1715502646897,-150.0,0.00022977,2]
[326840831,1715502646906,-155.25139788,0.00023,2]
[326840832,1715502646915,-166.666666,0.00023456,2]
[326840833,1715502646924,-391.172754,0.00023562,2]
[326840834,1715502646936,-228.756003,0.00023562,2]
[326840835,1715502646945,-167.361754,0.00023562,2]
[326840836,1715502646954,-209.1798661,0.00023562,2]
[326840837,1715502646963,-173.264373,0.00023562,2]
[326840838,1715502646974,-158.96888552,0.000239,2]
[326840839,1715502646985,-166.666666,0.00023969,2]
[326840840,1715502646994,-150.0,0.0002398,2]
[326840841,1715502647003,-166.666666,0.00024482,2]
[326840842,1715502647012,-621.22113099,0.00024947,2]
[326840843,1715502647022,-150.0,0.00024984,3]
[326840844,1715502647031,-2344.25910939,0.00025,7]
[326840845,1715502647041,-154.97477557,0.00025,2]
[326840846,1715502647051,-400.28835833,0.00025,2]
[326840847,1715502647060,-168.0886518,0.00025,2]
[326840848,1715502647069,-151.0,0.00025,2]
[326840849,1715502647078,-151.0,0.00025,2]
[326840850,1715502647087,-308.62036888,0.00025,14]
[326840851,1715502647096,-211.650208,0.00025931,2]
[326840852,1715502647105,-151.0,0.00025931,2]
[326840853,1715502647115,-220.241404,0.00025931,2]
[326840854,1715502647124,-151.0,0.00025931,2]
[326840855,1715502647133,-780.98349978,0.00025963,2]
[326840856,1715502647142,-150.0,0.00025987,3]
[326840857,1715502647151,-620.06105655,0.00026194,2]
[326840858,1715502647160,-151.0,0.00026194,2]
[326840859,1715502647169,-150.0,0.0002699,3]
[326840860,1715502647179,-186.94184116,0.00027,2]
[326840861,1715502647188,-242.250852,0.00027088,2]
[326840862,1715502647197,-306.0,0.00027342,2]
[326840863,1715502647205,-804.99971339,0.000275,17]
[326840864,1715502647214,-150.0,0.00027993,3]
[326840865,1715502647223,-322.40707448,0.00028,2]
[326840866,1715502647232,-151.0,0.00028145,2]
[326840867,1715502647242,-151.0,0.00028145,2]
[326840868,1715502647252,-200.430596,0.00028155,2]
[326840869,1715502647261,-151.0,0.00028164,2]
[326840870,1715502647270,-151.0,0.00028164,2]
[326840871,1715502647278,-151.0,0.00028164,2]
[326840872,1715502647287,-151.0,0.00028165,2]
[326840873,1715502647296,-151.0,0.00028165,2]
[326840874,1715502647305,-201.423656,0.00028165,2]
[326840875,1715502647314,-12835.05,0.00028165,3]
[326840876,1715502647323,-10695.88,0.00028165,3]
[326840877,1715502647333,-28591.01746764,0.00028175,7]
[326840878,1715502647342,-151.0,0.00028175,2]
[326840879,1715502647351,-151.73366,0.00028184,2]
[326840880,1715502647360,-12008.53672489,0.00028185,2]
[326840881,1715502647369,-151.0,0.00028185,2]
[326840882,1715502647378,-151.0,0.00028185,2]
[326840883,1715502647387,-151.0,0.00028185,2]
[326840884,1715502647396,-151.0,0.00028185,2]
[326840885,1715502647405,-151.0,0.00028185,2]
[326840886,1715502647414,-308.4945143,0.00028301,2]
[326840887,1715502647423,-306.0,0.00028301,2]
[326840888,1715502647432,-153.0,0.00028301,2]
[326840889,1715502647441,-306.0,0.00028329,2]
[326840890,1715502647450,-2009.86935427,0.000286,14]
[326840891,1715502647459,-409.0560974,0.00029,7]
[326840892,1715502647468,-391.172754,0.00029531,2]
[326840893,1715502647478,-500.0,0.00029642,2]
[326840894,1715502647487,-151.0,0.00029642,2]
[326840895,1715502647497,-151.0,0.00029642,2]
[326840896,1715502647506,-151.0,0.000297,2]
[326840897,1715502647516,-151.0,0.000297,2]
[326840898,1715502647525,-151.0,0.000297,2]
[326840899,1715502647534,-151.0,0.00029863,2]
[326840900,1715502647543,-151.0,0.00029863,2]
[326840901,1715502647556,-151.0,0.00029863,2]
[326840902,1715502647565,-166.666666,0.00029863,2]
[326840903,1715502647574,-151.0,0.000299,2]
[326840904,1715502647584,-151.0,0.000299,2]
[326840905,1715502647593,-151.0,0.000299,2]
[326840906,1715502647602,-272.312036,0.000299,2]
[326840907,1715502647611,-151.0,0.000299,2]
[326840908,1715502647620,-2000.0,0.000299,2]
[326840909,1715502647629,-154.777591,0.000299,2]
[326840910,1715502647638,-55555.0,0.000299,3]
[326840911,1715502647647,-9883.561,0.0003,2]
[326840912,1715502647656,-300.1083254,0.0003,2]
[326840913,1715502647666,-6933.01849963,0.0003,2]
[326840914,1715502647675,-1018.86592625,0.0003,4]
[326840915,1715502647685,-472.97709924,0.0003,2]
[326840916,1715502647696,-151.0,0.0003,2]
[326840917,1715502647706,-7520.64632828,0.0003,2]
[326840918,1715502648081,-8.21658167,0.0003,2]
[326840943,1715502937762,292.37560477,9.999e-05,2]
[326840955,1715503010703,157.22766132,9.999e-05,2]
[326840959,1715503037180,522.46559365,9.999e-05,2]
[326840960,1715503045054,281.12635245,9.999e-05,2]
[326840961,1715503061032,257.01669087,9.999e-05,2]
[326840963,1715503365387,770.89351422,0.0001,2]
[326840964,1715503522683,-157.22766132,0.00017227,2]
[326840965,1715503522705,-2594.49494001,0.00017227,2]
[326840966,1715503522725,-910.72886843,0.00017228,2]
[326840967,1715503522746,-155.44511482,0.00018069,2]
[326840968,1715503522767,-154.76784823,0.00018185,2]
[326840969,1715503522787,-480.2207562,0.00018814,2]
[326840970,1715503533062,-1624.38458646,0.00019142,2]
[326840971,1715503533083,-584.46537033,0.00019143,2]
[326840972,1715503533105,-14338.2648542,0.00019144,2]
[326840973,1715503602035,154.76784823,9.999e-05,2]
[326841012,1715503831770,-157.22766132,0.00018184,2]
[326841013,1715503831780,-155.36646933,0.00018185,2]
[326841015,1715503831789,-150.0,0.000189,2]
[326841017,1715503831798,-987.09757996,0.00019124,2]
[326841019,1715503831809,-3627.52612423,0.00019124,2]
[326841020,1715503831828,-905.41848869,0.00019124,2]
[326841021,1715503831839,-530.68111469,0.00019124,2]
[326841056,1715503837847,-18849.27669243,0.00019124,2]
[326841057,1715503837857,-2594.49494001,0.00019999,2]
[326841058,1715503837866,-2012.23413501,0.0002,2]
[326841059,1715503837875,-154.76784823,0.00020499,2]
[326841060,1715503837885,-1034.47166902,0.000205,2]
[326841061,1715503837894,-309.36577005,0.00020911,2]
[326841062,1715503837903,-1465.79568205,0.00020912,2]
[326841063,1715503837912,-1336.81700769,0.00020912,2]
[326841064,1715503837921,-1681.2123987,0.00020912,2]
[326841065,1715503837930,-718.98711623,0.00020912,2]
[326841066,1715503837939,-206.84585849,0.00020912,2]
[326841067,1715503837948,-523.50964273,0.00020912,2]
[326841068,1715503837957,-1093.32828245,0.00020912,2]
[326841069,1715503837966,-904.53581118,0.00020912,2]
[326841070,1715503837975,-330.512254,0.00020912,2]
[326841071,1715503837985,-83.53440176,0.00020912,2]
[326841073,1715503840177,-634.97781107,0.00020912,2]
[326841074,1715503840506,-98.46213263,0.00020912,2]
[326841075,1715503840515,-1348.61247082,0.00020912,2]
[326841076,1715503840526,-430.00612,0.00020912,2]
[326841077,1715503840542,-1064.21415638,0.00020912,2]
[326841078,1715503840551,-3458.80437389,0.00020912,2]
[326841079,1715503840561,-17547.79492805,0.00020912,2]
[326841080,1715503840570,-3917.46585501,0.00020913,2]
[326841081,1715503840582,-2509.63867721,0.00020913,2]
[326841082,1715503840591,-166.666666,0.00021918,2]
[326841083,1715503840601,-159.98971248,0.00022,2]
[326841084,1715503840610,-166.666666,0.00022431,2]
[326841085,1715503840621,-166.666666,0.00022944,2]
[326841086,1715503840631,-166.666666,0.00023456,2]
[326841087,1715503840640,-352.055478,0.00023562,2]
[326841088,1715503840649,-228.756003,0.00023562,2]
[326841089,1715503840659,-166.666666,0.00023969,2]
[326841090,1715503840669,-166.666666,0.00024482,2]
[326841091,1715503840678,-400.28835833,0.00025,2]
[326841092,1715503840863,-167.10326178,0.00025,2]
[326841093,1715503840873,-186.94483115,0.00027,2]
[326841094,1715503840882,-741.60076577,0.000275,17]
[326841095,1715503840891,-221.20105551,0.00028,2]
[326841096,1715503840900,-154.2468747,0.0002926,2]
[326841097,1715503840909,-153.0,0.0002926,2]
[326841098,1715503840918,-306.0,0.0002926,2]
[326841099,1715503840927,-153.0,0.0002926,2]
[326841100,1715503840936,-153.0,0.0002926,2]
[326841101,1715503840945,-153.0,0.0002926,2]
[326841102,1715503840954,-352.055478,0.00029531,2]
[326841103,1715503840963,-500.0,0.00029642,2]
[326841104,1715503840975,-166.666666,0.00029863,2]
[326841105,1715503840985,-655.97,0.0002987,3]
[326841106,1715503840994,-524.76,0.0002988,3]
[326841107,1715503841003,-437.3,0.0002988,3]
[326841108,1715503841013,-218.65,0.0002988,3]
[326841109,1715503841023,-7881.61,0.0002989,3]
[326841110,1715503841032,-7599.63,0.0002989,3]
[326841111,1715503841041,-32786.61887336,0.000299,3]
[326841148,1715503846225,-29.83317748,0.000299,3]
[326841149,1715503977168,154.76784823,0.00015,2]
[326841150,1715504164611,465.56886578,9.999e-05,2]
[326841153,1715504511791,157.22766132,9.999e-05,2]
[326841154,1715504556775,2000.0,0.0002,15]
[326841155,1715504578767,2000.0,0.0002,15]
[326841156,1715504601078,2000.0,0.0002,15]
[326841162,1715504620775,2000.0,0.0002,15]
[326841163,1715504638779,2000.0,0.0002,15]
[326841164,1715504658771,1853.14618939,0.0002,15]
[326841166,1715504995250,465.56886578,9.999e-05,2]
[326841295,1715505038086,-157.22766132,0.00018049,2]
[326841296,1715505038096,-263.937582,0.0001805,2]
[326841297,1715505038105,-3794.40548132,0.00018474,2]
[326841337,1715505043265,-2594.49494001,0.00018049,2]
[326841338,1715505043274,-21105.59451868,0.00018474,2]
[326841339,1715505043283,-234.6140841,0.00018698,2]
[326841340,1715505043292,-1235.85366966,0.000189,2]
[326841341,1715505043301,-171.10311,0.00019178,2]
[326841342,1715505043310,-200.0,0.0002,2]
[326841343,1715505043318,-11917.8584967,0.0002,2]
[326841345,1715505043328,-154.76784823,0.00020898,2]
[326841347,1715505043337,-2012.23413501,0.00020899,2]
[326841349,1715505043345,-218.65,0.000209,3]
[326841351,1715505043354,-655.95,0.000209,3]
[326841353,1715505043363,-561.75725265,0.00020906,2]
[326841355,1715505043372,-500.0,0.00020906,2]
[326841357,1715505043381,-500.0,0.00020906,2]
[326841359,1715505043390,-500.0,0.00020906,2]
[326841361,1715505043399,-500.0,0.00020906,2]
[326841363,1715505043408,-500.0,0.00020906,2]
[326841364,1715505043417,-500.0,0.00020906,2]
[326841366,1715505043426,-500.0,0.00020906,2]
[326841368,1715505043435,-500.0,0.00020906,2]
[326841370,1715505043444,-500.0,0.00020906,2]
[326841372,1715505043453,-500.0,0.00020906,2]
[326841374,1715505043462,-500.0,0.00020906,2]
[326841375,1715505043471,-500.0,0.00020906,2]
[326841376,1715505043479,-500.0,0.00020906,2]
[326841377,1715505043488,-500.0,0.00020906,2]
[326841378,1715505043497,-500.0,0.00020906,2]
[326841379,1715505043506,-500.0,0.00020906,2]
[326841380,1715505043515,-500.0,0.00020906,2]
[326841381,1715505043523,-500.0,0.00020906,2]
[326841383,1715505043533,-500.0,0.00020906,2]
[326841384,1715505043542,-500.0,0.00020906,2]
[326841385,1715505043551,-500.0,0.00020906,2]
[326841386,1715505043559,-229.71256709,0.00020906,2]
[326841387,1715505043568,-500.0,0.00020906,2]
[326841388,1715505043577,-500.0,0.00020906,2]
[326841389,1715505043585,-500.0,0.00020906,2]
[326841390,1715505043594,-422.28424335,0.00020906,2]
[326841391,1715505043603,-500.0,0.00020906,2]
[326841392,1715505043612,-500.0,0.00020906,2]
[326841393,1715505043621,-500.0,0.00020906,2]
[326841394,1715505043630,-500.0,0.00020906,2]
[326841395,1715505043638,-397.4572617,0.00020906,2]
[326841396,1715505043647,-500.0,0.00020906,2]
[326841397,1715505043789,-500.0,0.00020906,2]
[326841398,1715505043799,-500.0,0.00020906,2]
[326841399,1715505043808,-500.0,0.00020906,2]
[326841400,1715505043817,-500.0,0.00020906,2]
[326841401,1715505043826,-500.0,0.00020906,2]
[326841402,1715505043835,-500.0,0.00020906,2]
[326841403,1715505043844,-500.0,0.00020906,2]
[326841404,1715505043853,-500.0,0.00020906,2]
[326841405,1715505043862,-500.0,0.00020906,2]
[326841406,1715505043872,-500.0,0.00020906,2]
[326841407,1715505043881,-500.0,0.00020906,2]
[326841408,1715505043890,-500.0,0.00020906,2]
[326841409,1715505043900,-500.0,0.00020906,2]
[326841410,1715505043909,-500.0,0.00020906,2]
[326841411,1715505043918,-500.0,0.00020906,2]
[326841412,1715505043927,-500.0,0.00020906,2]
[326841413,1715505043936,-500.0,0.00020906,2]
[326841414,1715505043945,-500.0,0.00020906,2]
[326841415,1715505043954,-500.0,0.00020906,2]
[326841416,1715505043963,-500.0,0.00020906,2]
[326841417,1715505043973,-500.0,0.00020906,2]
[326841418,1715505043982,-500.0,0.00020906,2]
[326841419,1715505043991,-500.0,0.00020906,2]
[326841420,1715505044000,-500.0,0.00020906,2]
[326841421,1715505044009,-500.0,0.00020906,2]
[326841422,1715505044018,-500.0,0.00020906,2]
[326841423,1715505044027,-500.0,0.00020906,2]
[326841424,1715505044036,-500.0,0.00020906,2]
[326841425,1715505044045,-500.0,0.00020906,2]
[326841426,1715505044054,-500.0,0.00020906,2]
[326841427,1715505044063,-500.0,0.00020906,2]
[326841428,1715505044072,-500.0,0.00020906,2]
[326841429,1715505044081,-500.0,0.00020906,2]
[326841430,1715505044091,-500.0,0.00020906,2]
[326841431,1715505044101,-500.0,0.00020906,2]
[326841432,1715505044110,-500.0,0.00020906,2]
[326841433,1715505044119,-500.0,0.00020906,2]
[326841434,1715505044128,-500.0,0.00020906,2]
[326841435,1715505044137,-500.0,0.00020906,2]
[326841436,1715505044146,-500.0,0.00020906,2]
[326841437,1715505044155,-500.0,0.00020906,2]
[326841438,1715505044164,-500.0,0.00020906,2]
[326841439,1715505044175,-500.0,0.00020906,2]
[326841440,1715505044185,-154.77121815,0.00020908,2]
[326841441,1715505044194,-1062.28616819,0.00020909,2]
[326841442,1715505044203,-154.89479174,0.0002091,2]
[326841443,1715505044213,-3457.70192986,0.0002091,2]
[326841444,1715505044225,-362.81403481,0.0002091,2]
[326841445,1715505044234,-500.0,0.0002091,2]
[326841446,1715505044245,-500.0,0.0002091,2]
[326841447,1715505044254,-500.0,0.0002091,2]
[326841448,1715505044265,-201.10805306,0.0002091,2]
[326841449,1715505044275,-408.05710401,0.0002091,2]
[326841450,1715505044285,-500.0,0.0002091,2]
[326841451,1715505044295,-500.0,0.0002091,2]
[326841452,1715505044305,-500.0,0.0002091,2]
[326841453,1715505044316,-500.0,0.0002091,2]
[326841454,1715505044328,-500.0,0.0002091,2]
[326841455,1715505044338,-500.0,0.0002091,2]
[326841456,1715505044348,-500.0,0.0002091,2]
[326841457,1715505044358,-500.0,0.0002091,2]
[326841458,1715505044367,-500.0,0.0002091,2]
[326841459,1715505044376,-500.0,0.0002091,2]
[326841460,1715505044385,-332.62447538,0.0002091,2]
[326841461,1715505044394,-14295.50873382,0.0002091,7]
[326841462,1715505044403,-1172.12955469,0.0002091,7]
[326841463,1715505044412,-80000.0,0.00020911,2]
[326841464,1715505044421,-406.21744257,0.00020911,2]
[326841465,1715505044432,-1558.94506613,0.00020911,2]
[326841466,1715505044442,-400.0,0.00020911,2]
[326841467,1715505044452,-151.0,0.00020911,2]
[326841468,1715505044463,-151.0,0.00020911,2]
[326841469,1715505044472,-151.0,0.00020911,2]
[326841470,1715505044482,-246.775334,0.00020911,2]
[326841471,1715505044491,-163.192593,0.00020911,2]
[326841472,1715505044500,-163.192593,0.00020911,2]
[326841473,1715505044511,-151.0,0.00020911,2]
[326841474,1715505044520,-151.0,0.00020911,2]
[326841475,1715505044531,-151.0,0.00020911,2]
[326841476,1715505044541,-152.024151,0.00020911,2]
[326841477,1715505044550,-151.0,0.00020911,2]
[326841478,1715505044559,-862.229672,0.00020911,2]
[326841479,1715505044569,-862.229672,0.00020911,2]
[326841480,1715505044579,-151.0,0.00020911,2]
[326841481,1715505044587,-1294.212203,0.00020911,2]
[326841482,1715505044596,-1294.212203,0.00020911,2]
[326841483,1715505044607,-4215.57072464,0.00020912,2]
[326841484,1715505044617,-150.545,0.00021664,2]
[326841485,1715505044626,-225.0,0.00021918,2]
[326841486,1715505044635,-166.666666,0.00021918,2]
[326841487,1715505044644,-242.21759317,0.00022,2]
[326841488,1715505044655,-5229.71545665,0.00022,2]
[326841489,1715505044664,-437.3,0.0002227,3]
[326841490,1715505044673,-713.0309286,0.00022425,2]
[326841491,1715505044682,-151.010246,0.00022425,2]
[326841492,1715505044691,-166.666666,0.00022431,2]
[326841493,1715505044700,-493.0,0.00022553,2]
[326841494,1715505044709,-166.666666,0.00022944,2]
[326841495,1715505044719,-166.666666,0.00023456,2]